fUSD/lending_fUSD_20260324
["ID","MTS","AMOUNT","RATE_DAILY","PERIOD"]
[408835493,1774338678437,-1076.85,0.00041369,120]
[408835494,1774338678447,-651.22,0.00041369,120]
[408835495,1774338678457,-596.03556654,0.00041369,120]
[408835496,1774338678467,-500.0,0.00041369,120]
[408835497,1774338678477,-175.38429288,0.00041369,120]
[408835498,1774338678487,-500.0,0.00041369,120]
[408835499,1774338678497,-500.0,0.00041369,120]
[408835500,1774338678506,-539.9,0.00041369,120]
[408835501,1774338678516,-500.0,0.00041369,120]
[408835502,1774338678526,-604.85,0.00041369,120]
[408835503,1774338678536,-617.48,0.00041369,120]
[408835504,1774338678547,-500.0,0.00041369,120]
[408835505,1774338678558,-766.13,0.00041369,120]
[408835506,1774338678568,-500.0,0.00041369,120]
[408835507,1774338678578,-835.56,0.00041369,120]
[408835508,1774338678589,-792.41,0.00041369,120]
[408835509,1774338678599,-500.0,0.00041369,120]
[408835510,1774338678610,-565.55006139,0.00041369,120]
[408835511,1774338678620,-500.0,0.00041369,120]
[408835512,1774338678631,-500.0,0.00041369,120]
[408835513,1774338678641,-500.0,0.00041369,120]
[408835514,1774338678651,-500.0,0.00041369,120]
[408835515,1774338678661,-500.0,0.00041369,120]
[408835516,1774338678671,-500.0,0.00041369,120]
[408835517,1774338678682,-500.0,0.00041369,120]
[408835518,1774338678692,-500.0,0.00041369,120]
[408835519,1774338678703,-500.0,0.00041369,120]
[408835520,1774338678713,-500.0,0.00041369,120]
[408835521,1774338678724,-500.0,0.00041369,120]
[408835522,1774338678734,-1234.56,0.00041369,120]
[408835523,1774338678745,-500.0,0.00041369,120]
[408835524,1774338678755,-572.4322113,0.00041369,120]
[408835525,1774338678765,-890.18,0.00041369,120]
[408835526,1774338678775,-500.0,0.00041369,120]
[408835527,1774338678785,-500.0,0.00041369,120]
[408835528,1774338678795,-500.0,0.00041369,120]
[408835529,1774338678806,-500.0,0.00041369,120]
[408835530,1774338678816,-1024.48,0.00041369,120]
[408835531,1774338678826,-500.0,0.00041369,120]
[408835532,1774338678837,-500.0,0.00041369,120]
[408835533,1774338678848,-500.0,0.00041369,120]
[408835534,1774338678859,-500.0,0.00041369,120]
[408835535,1774338678869,-500.0,0.00041369,120]
[408835536,1774338678879,-500.0,0.00041369,120]
[408835537,1774338678889,-500.0,0.00041369,120]
[408835538,1774338678899,-500.0,0.00041369,120]
[408835539,1774338678909,-500.0,0.00041369,120]
[408835540,1774338678920,-315.45274347,0.00041369,120]
[408835541,1774338678930,-500.0,0.00041369,120]
[408835542,1774338678941,-500.0,0.00041369,120]
[408835543,1774338678951,-2135.18,0.00041369,120]
[408835544,1774338678961,-500.0,0.00041369,120]
[408835545,1774338678971,-766.51,0.00041369,120]
[408835546,1774338678982,-619.0969942,0.00041369,120]
[408835547,1774338678992,-500.0,0.00041369,120]
[408835548,1774338679003,-527.03355758,0.00041369,120]
[408835549,1774338679013,-500.0,0.00041369,120]
[408835550,1774338679023,-677.14,0.00041369,120]
[408835551,1774338679033,-406.5577115,0.00041369,120]
[408835552,1774338679043,-500.0,0.00041369,120]
[408835553,1774338679054,-563.34,0.00041369,120]
[408835554,1774338679064,-500.0,0.00041369,120]
[408835555,1774338679074,-1402.94,0.00041369,120]
[408835556,1774338679085,-761.77,0.00041369,120]
[408835557,1774338679095,-500.0,0.00041369,120]
[408835558,1774338679105,-1465.28,0.00041369,120]
[408835559,1774338679116,-500.0,0.00041369,120]
[408835560,1774338679128,-500.0,0.00041369,120]
[408835561,1774338679139,-500.0,0.00041369,120]
[408835562,1774338679150,-500.0,0.00041369,120]
[408835563,1774338679160,-500.0,0.00041369,120]
[408835564,1774338679169,-500.0,0.00041369,120]
[408835565,1774338679179,-500.0,0.00041369,120]
[408835566,1774338679189,-598.21,0.00041369,120]
[408835567,1774338679199,-500.0,0.00041369,120]
[408835568,1774338679210,-500.0,0.00041369,120]
[408835569,1774338679220,-500.0,0.00041369,120]
[408835570,1774338679230,-1412.93,0.00041369,120]
[408835571,1774338679241,-500.0,0.00041369,120]
[408835572,1774338679252,-500.0,0.00041369,120]
[408835573,1774338679262,-500.0,0.00041369,120]
[408835574,1774338679272,-500.0,0.00041369,120]
[408835575,1774338679283,-500.0,0.00041369,120]
[408835576,1774338679293,-500.0,0.00041369,120]
[408835577,1774338679303,-500.0,0.00041369,7]
[408835578,1774338679313,-500.0,0.00041369,120]
[408835579,1774338679324,-500.0,0.00041369,120]
[408835580,1774338679334,-500.0,0.00041369,120]
[408835581,1774338679346,-846.4,0.00041369,120]
[408835582,1774338679360,-643.51973364,0.00041369,120]
[408835583,1774338679370,-500.0,0.00041369,120]
[408835584,1774338679380,-500.0,0.00041369,120]
[408835585,1774338679390,-804.53,0.00041369,120]
[408835586,1774338679402,-967.16,0.00041369,120]
[408835587,1774338679412,-862.09,0.00041369,120]
[408835588,1774338679422,-500.0,0.00041369,120]
[408835589,1774338679433,-500.0,0.00041369,120]
[408835590,1774338679444,-558.16881522,0.00041369,120]
[408835591,1774338679455,-500.0,0.00041369,120]
[408835592,1774338679466,-523.58769914,0.00041369,120]
[408835593,1774338679477,-306.82921989,0.00041369,120]
[408835594,1774338679488,-500.0,0.00041369,120]
[408835595,1774338679498,-649.68,0.00041369,120]
[408835596,1774338679509,-897.41,0.00041369,120]
[408835597,1774338679519,-300.02642448,0.00041369,120]
[408835598,1774338679530,-500.0,0.00041369,120]
[408835599,1774338679540,-500.0,0.00041369,120]
[408835600,1774338679551,-500.0,0.00041369,120]
[408835601,1774338679562,-500.0,0.00041369,120]
[408835602,1774338679574,-500.0,0.00041369,120]
[408835603,1774338679585,-1647.3,0.00041369,120]
[408835604,1774338679596,-500.0,0.00041369,120]
[408835605,1774338679607,-500.0,0.00041369,120]
[408835606,1774338679618,-500.0,0.00041369,120]
[408835607,1774338679628,-500.0,0.00041369,120]
[408835608,1774338679639,-500.0,0.00041369,120]
[408835609,1774338679651,-214.82772473,0.00041369,120]
[408835610,1774338679661,-299.04501579,0.00041369,120]
[408835611,1774338679672,-500.0,0.00041369,120]
[408835612,1774338679682,-932.54,0.00041369,120]
[408835613,1774338679693,-500.0,0.00041369,120]
[408835614,1774338679703,-500.0,0.00041369,60]
[408835615,1774338679714,-1817.92,0.00041369,120]
[408835616,1774338679724,-500.0,0.00041369,120]
[408835617,1774338679735,-310.61033838,0.00041369,120]
[408835618,1774338679746,-500.0,0.00041369,120]
[408835619,1774338679757,-500.0,0.00041369,120]
[408835620,1774338679767,-500.0,0.00041369,120]
[408835621,1774338679778,-500.0,0.00041369,120]
[408835622,1774338679789,-500.0,0.00041369,120]
[408835623,1774338679799,-500.0,0.00041369,120]
[408835624,1774338679810,-500.0,0.00041369,120]
[408835625,1774338679820,-1328.91,0.00041369,120]
[408835626,1774338679831,-1294.19,0.00041369,120]
[408835627,1774338679842,-500.0,0.00041369,120]
[408835628,1774338679853,-500.0,0.00041369,120]
[408835629,1774338679864,-500.0,0.00041369,120]
[408835630,1774338679875,-500.0,0.00041369,120]
[408835631,1774338679886,-500.0,0.00041369,120]
[408835632,1774338679896,-500.0,0.00041369,120]
[408835633,1774338679907,-500.0,0.00041369,120]
[408835634,1774338679919,-500.0,0.00041369,120]
[408835635,1774338679929,-3681.23,0.00041369,120]
[408835636,1774338679939,-384.23488015,0.00041369,120]
[408835637,1774338679950,-500.0,0.00041369,120]
[408835638,1774338679960,-208.77248747,0.00041369,120]
[408835639,1774338679971,-500.0,0.00041369,120]
[408835640,1774338679981,-500.0,0.00041369,120]
[408835641,1774338679992,-500.0,0.00041369,120]
[408835642,1774338680002,-500.0,0.00041369,120]
[408835643,1774338680012,-644.74,0.00041369,120]
[408835644,1774338680022,-500.0,0.00041369,120]
[408835645,1774338680033,-688.63,0.00041369,120]
[408835646,1774338680043,-500.0,0.00041369,120]
[408835647,1774338680054,-632.88898713,0.00041369,120]
[408835648,1774338680065,-572.14,0.00041369,120]
[408835649,1774338680075,-500.0,0.00041369,120]
[408835650,1774338680087,-500.0,0.00041369,120]
[408835651,1774338680097,-500.0,0.00041369,120]
[408835652,1774338680109,-500.0,0.00041369,120]
[408835653,1774338680121,-500.0,0.00041369,120]
[408835654,1774338680133,-500.0,0.00041369,120]
[408835655,1774338680144,-500.0,0.00041369,120]
[408835656,1774338680155,-1109.47,0.00041369,120]
[408835657,1774338680165,-447.12947433,0.00041369,120]
[408835658,1774338680176,-500.0,0.00041369,120]
[408835659,1774338680187,-500.0,0.00041369,120]
[408835660,1774338680197,-500.0,0.00041369,120]
[408835661,1774338680209,-500.0,0.00041369,120]
[408835662,1774338680219,-500.0,0.00041369,120]
[408835663,1774338680229,-500.0,0.00041369,120]
[408835664,1774338680240,-500.0,0.00041369,120]
[408835665,1774338680250,-227.33137513,0.00041369,120]
[408835666,1774338680260,-500.0,0.00041369,120]
[408835667,1774338680270,-500.0,0.00041369,120]
[408835668,1774338680281,-1361.64,0.00041369,120]
[408835669,1774338680291,-500.0,0.00041369,120]
[408835670,1774338680301,-500.0,0.00041369,120]
[408835671,1774338680311,-1113.98,0.00041369,120]
[408835672,1774338680322,-500.0,0.00041369,120]
[408835673,1774338680333,-500.0,0.00041369,120]
[408835674,1774338680343,-500.0,0.00041369,120]
[408835675,1774338680354,-500.0,0.00041369,120]
[408835676,1774338680368,-500.0,0.00041369,120]
[408835677,1774338680379,-500.0,0.00041369,120]
[408835678,1774338680389,-500.0,0.00041369,120]
[408835679,1774338680400,-500.0,0.00041369,120]
[408835680,1774338680410,-804.84,0.00041369,120]
[408835681,1774338680420,-500.0,0.00041369,120]
[408835682,1774338680431,-500.0,0.00041369,120]
[408835683,1774338680542,-588.07016185,0.00041369,4]
[408835684,1774338680554,-587.8,0.00041369,120]
[408835685,1774338680565,-500.0,0.00041369,120]
[408835686,1774338680576,-500.0,0.00041369,120]
[408835687,1774338680588,-895.35,0.00041369,120]
[408835688,1774338680600,-500.0,0.00041369,120]
[408835689,1774338680613,-157.24814208,0.00041369,120]
[408835690,1774338680625,-310.52389817,0.00041369,120]
[408835691,1774338680635,-500.0,0.00041369,120]
[408835692,1774338680646,-500.0,0.00041369,120]
[408835693,1774338680656,-500.0,0.00041369,120]
[408835694,1774338680668,-500.0,0.00041369,15]
[408835695,1774338680679,-640.6,0.00041369,120]
[408835696,1774338680690,-500.0,0.00041369,120]
[408835697,1774338680700,-500.0,0.00041369,120]
[408835698,1774338680710,-500.0,0.00041369,120]
[408835699,1774338680721,-643.16791979,0.00041369,120]
[408835700,1774338680732,-179.16491035,0.00041369,120]
[408835701,1774338680744,-500.0,0.00041369,120]
[408835702,1774338680755,-500.0,0.00041369,120]
[408835703,1774338680766,-500.0,0.00041369,120]
[408835704,1774338680779,-500.0,0.00041369,120]
[408835705,1774338680789,-625.97817984,0.00041369,120]
[408835706,1774338680801,-500.0,0.00041369,120]
[408835707,1774338680812,-500.0,0.00041369,120]
[408835708,1774338680822,-500.0,0.00041369,120]
[408835709,1774338680834,-500.0,0.00041369,2]
[408835710,1774338680845,-1353.62,0.00041369,120]
[408835711,1774338680856,-500.0,0.00041369,120]
[408835712,1774338680867,-500.0,0.00041369,120]
[408835713,1774338680878,-500.0,0.00041369,120]
[408835714,1774338680888,-663.05,0.00041369,120]
[408835715,1774338680898,-500.0,0.00041369,120]
[408835716,1774338680909,-500.0,0.00041369,120]
[408835717,1774338680919,-2022.99,0.00041369,120]
[408835718,1774338680930,-500.0,0.00041369,120]
[408835719,1774338680940,-500.0,0.00041369,120]
[408835720,1774338680951,-500.0,0.00041369,120]
[408835721,1774338680962,-993.61,0.00041369,120]
[408835722,1774338680972,-500.0,0.00041369,120]
[408835723,1774338680983,-636.16460353,0.00041369,120]
[408835724,1774338680993,-500.0,0.00041369,120]
[408835725,1774338681003,-500.0,0.00041369,120]
[408835726,1774338681013,-500.0,0.00041369,120]
[408835727,1774338681023,-500.0,0.00041369,120]
[408835728,1774338681034,-631.03001697,0.00041369,120]
[408835729,1774338681044,-265.18559798,0.00041369,120]
[408835730,1774338681055,-526.3,0.00041369,120]
[408835731,1774338681065,-500.0,0.00041369,120]
[408835732,1774338681075,-500.0,0.00041369,120]
[408835733,1774338681085,-803.74,0.00041369,120]
[408835734,1774338681095,-500.0,0.00041369,120]
[408835735,1774338681105,-500.0,0.00041369,120]
[408835736,1774338681115,-500.0,0.00041369,120]
[408835737,1774338681126,-593.39,0.00041369,120]
[408835738,1774338681136,-773.48,0.00041369,120]
[408835739,1774338681146,-330.74,0.00041369,120]
[408835740,1774338681156,-500.0,0.00041369,120]
[408835741,1774338681167,-500.0,0.00041369,120]
[408835742,1774338681178,-500.0,0.00041369,120]
[408835743,1774338681188,-500.0,0.00041369,120]
[408835744,1774338681198,-500.0,0.00041369,120]
[408835745,1774338681207,-500.0,0.00041369,120]
[408835746,1774338681217,-500.0,0.00041369,120]
[408835747,1774338681227,-500.0,0.00041369,120]
[408835748,1774338681238,-500.0,0.00041369,120]
[408835749,1774338681248,-500.0,0.00041369,120]
[408835750,1774338681258,-1169.17,0.00041369,120]
[408835751,1774338681268,-500.0,0.00041369,120]
[408835752,1774338681278,-500.0,0.00041369,120]
[408835753,1774338681287,-500.0,0.00041369,120]
[408835754,1774338681297,-500.0,0.00041369,120]
[408835755,1774338681307,-500.0,0.00041369,120]
[408835756,1774338681317,-500.0,0.00041369,120]
[408835757,1774338681327,-1339.98,0.00041369,120]
[408835758,1774338681338,-500.0,0.00041369,120]
[408835759,1774338681348,-500.0,0.00041369,120]
[408835760,1774338681359,-500.0,0.00041369,120]
[408835761,1774338681369,-500.0,0.00041369,120]
[408835762,1774338681379,-500.0,0.00041369,120]
[408835763,1774338681389,-599.34,0.00041369,120]
[408835764,1774338681399,-500.0,0.00041369,120]
[408835765,1774338681409,-551.15,0.00041369,120]
[408835766,1774338681419,-500.0,0.00041369,120]
[408835767,1774338681430,-174.59409017,0.00041369,120]
[408835768,1774338681443,-500.0,0.00041369,120]
[408835769,1774338681453,-1698.32,0.00041369,120]
[408835770,1774338681464,-500.0,0.00041369,120]
[408835771,1774338681474,-500.0,0.00041369,30]
[408835772,1774338681484,-1450.66,0.00041369,120]
[408835773,1774338681495,-500.0,0.00041369,120]
[408835774,1774338681506,-500.0,0.00041369,120]
[408835775,1774338681517,-500.0,0.00041369,120]
[408835776,1774338681527,-500.0,0.00041369,120]
[408835777,1774338681538,-500.0,0.00041369,120]
[408835778,1774338681549,-818.03,0.00041369,120]
[408835779,1774338681560,-500.0,0.00041369,120]
[408835780,1774338681571,-500.0,0.00041369,120]
[408835781,1774338681583,-620.94,0.00041369,2]
[408835782,1774338681594,-500.0,0.00041369,120]
[408835783,1774338681605,-500.0,0.00041369,120]
[408835784,1774338681616,-500.0,0.00041369,120]
[408835785,1774338681627,-500.0,0.00041369,120]
[408835786,1774338681638,-322.73464261,0.00041369,120]
[408835787,1774338681649,-500.0,0.00041369,120]
[408835788,1774338681660,-500.0,0.00041369,120]
[408835789,1774338681671,-500.0,0.00041369,120]
[408835790,1774338681682,-500.0,0.00041369,120]
[408835791,1774338681692,-500.0,0.00041369,120]
[408835792,1774338681702,-500.0,0.00041369,120]
[408835793,1774338681713,-500.0,0.00041369,120]
[408835794,1774338681724,-1515.34,0.00041369,120]
[408835795,1774338681734,-500.0,0.00041369,120]
[408835796,1774338681744,-500.0,0.00041369,120]
[408835797,1774338681755,-500.0,0.00041369,120]
[408835798,1774338681767,-1009.33,0.00041369,120]
[408835799,1774338681778,-500.0,0.00041369,120]
[408835800,1774338681789,-4192.59,0.00041369,120]
[408835801,1774338681800,-500.0,0.00041369,120]
[408835802,1774338681811,-500.0,0.00041369,120]
[408835803,1774338681821,-500.0,0.00041369,120]
[408835804,1774338681832,-2475.9,0.00041369,120]
[408835805,1774338681844,-500.0,0.00041369,120]
[408835806,1774338681854,-500.0,0.00041369,120]
[408835807,1774338681864,-162.91019097,0.00041369,120]
[408835808,1774338681875,-500.0,0.00041369,120]
[408835809,1774338681885,-2035.37,0.00041369,120]
[408835810,1774338681895,-500.0,0.00041369,120]
[408835811,1774338681905,-500.0,0.00041369,120]
[408835812,1774338681916,-500.0,0.00041369,120]
[408835813,1774338681927,-500.0,0.00041369,120]
[408835814,1774338681937,-857.75,0.00041369,120]
[408835815,1774338681948,-588.23,0.00041369,120]
[408835816,1774338681958,-944.17,0.00041369,120]
[408835817,1774338681967,-500.0,0.00041369,120]
[408835818,1774338681978,-500.0,0.00041369,120]
[408835819,1774338681988,-500.0,0.00041369,120]
[408835820,1774338681999,-1317.86,0.00041369,30]
[408835821,1774338682008,-500.0,0.00041369,120]
[408835822,1774338682018,-500.0,0.00041369,120]
[408835823,1774338682029,-500.0,0.00041369,120]
[408835824,1774338682040,-500.0,0.00041369,120]
[408835825,1774338682051,-826.35,0.00041369,120]
[408835826,1774338682062,-500.0,0.00041369,120]
[408835827,1774338682073,-1144.87,0.00041369,120]
[408835828,1774338682085,-183.32941873,0.00041369,120]
[408835829,1774338682097,-500.0,0.00041369,120]
[408835830,1774338682109,-500.0,0.00041369,120]
[408835831,1774338682122,-500.0,0.00041369,120]
[408835832,1774338682134,-500.0,0.00041369,120]
[408835833,1774338682146,-500.0,0.00041369,120]
[408835834,1774338682157,-500.0,0.00041369,120]
[408835835,1774338682168,-500.0,0.00041369,120]
[408835836,1774338682179,-559.72212669,0.00041369,120]
[408835837,1774338682190,-500.0,0.00041369,120]
[408835838,1774338682201,-500.0,0.00041369,120]
[408835839,1774338682213,-895.15,0.00041369,120]
[408835840,1774338682223,-500.0,0.00041369,120]
[408835841,1774338682234,-500.0,0.00041369,120]
[408835842,1774338682245,-800.0,0.00041369,120]
[408835843,1774338682255,-500.0,0.00041369,120]
[408835844,1774338682266,-500.0,0.00041369,120]
[408835845,1774338682276,-1197.62,0.00041369,120]
[408835846,1774338682287,-500.0,0.00041369,120]
[408835847,1774338682298,-500.0,0.00041369,120]
[408835848,1774338682309,-500.0,0.00041369,120]
[408835849,1774338682320,-1494.6,0.00041369,120]
[408835850,1774338682330,-1086.62,0.00041369,120]
[408835851,1774338682341,-500.0,0.00041369,120]
[408835852,1774338682351,-500.0,0.00041369,120]
[408835853,1774338682364,-500.0,0.00041369,120]
[408835854,1774338682375,-500.0,0.00041369,120]
[408835855,1774338682386,-500.0,0.00041369,120]
[408835856,1774338682396,-500.0,0.00041369,120]
[408835857,1774338682408,-500.0,0.00041369,120]
[408835858,1774338682417,-500.0,0.00041369,120]
[408835859,1774338682427,-946.8,0.00041369,120]
[408835860,1774338682439,-500.0,0.00041369,120]
[408835861,1774338682449,-713.74,0.00041369,120]
[408835862,1774338682460,-500.0,0.00041369,120]
[408835863,1774338682471,-500.0,0.00041369,120]
[408835864,1774338682482,-6072.1,0.00041369,120]
[408835865,1774338682492,-826.7,0.00041369,120]
[408835866,1774338682503,-1989.66,0.00041369,30]
[408835867,1774338682514,-500.0,0.00041369,120]
[408835868,1774338682525,-552.86,0.00041369,120]
[408835869,1774338682536,-926.79,0.00041369,120]
[408835870,1774338682546,-500.0,0.00041369,120]
[408835871,1774338682557,-500.0,0.00041369,120]
[408835872,1774338682568,-500.0,0.00041369,120]
[408835873,1774338682579,-2329.55,0.00041369,120]
[408835874,1774338682591,-500.0,0.00041369,120]
[408835875,1774338682601,-500.0,0.00041369,120]
[408835876,1774338682613,-500.0,0.00041369,30]
[408835877,1774338682624,-500.0,0.00041369,120]
[408835878,1774338682634,-847.68,0.00041369,120]
[408835879,1774338682645,-500.0,0.00041369,120]
[408835880,1774338682656,-500.0,0.00041369,120]
[408835881,1774338682667,-1646.81,0.00041369,120]
[408835882,1774338682678,-1090.68,0.00041369,120]
[408835883,1774338682688,-401.29573008,0.00041369,120]
[408835884,1774338682699,-500.0,0.00041369,120]
[408835885,1774338682710,-1885.93,0.00041369,120]
[408835886,1774338682721,-741.6,0.00041369,120]
[408835887,1774338682732,-500.0,0.00041369,120]
[408835888,1774338682742,-500.0,0.00041369,120]
[408835889,1774338682753,-500.0,0.00041369,120]
[408835890,1774338682764,-727.16,0.00041369,120]
[408835891,1774338682776,-500.0,0.00041369,120]
[408835892,1774338682786,-500.0,0.00041369,120]
[408835893,1774338682797,-712.06,0.00041369,120]
[408835894,1774338682807,-5833.33,0.00041369,120]
[408835895,1774338682818,-500.0,0.00041369,120]
[408835896,1774338682829,-500.0,0.00041369,120]
[408835897,1774338682840,-2107.35,0.00041369,120]
[408835898,1774338682851,-500.0,0.00041369,120]
[408835899,1774338682861,-500.0,0.00041369,120]
[408835900,1774338682871,-500.0,0.00041369,120]
[408835901,1774338682882,-500.0,0.00041369,120]
[408835902,1774338682893,-500.0,0.00041369,120]
[408835903,1774338682903,-500.0,0.00041369,120]
[408835904,1774338682913,-617.58,0.00041369,120]
[408835905,1774338682923,-500.0,0.00041369,120]
[408835906,1774338682933,-500.0,0.00041369,120]
[408835907,1774338682943,-2133.23,0.00041369,120]
[408835908,1774338682953,-500.0,0.00041369,120]
[408835909,1774338682963,-500.0,0.00041369,120]
[408835910,1774338682974,-1039.39,0.00041369,120]
[408835911,1774338682984,-500.0,0.00041369,120]
[408835912,1774338682995,-2468.56,0.00041369,120]
[408835913,1774338683006,-1366.12,0.00041369,120]
[408835914,1774338683016,-500.0,0.00041369,120]
[408835915,1774338683026,-500.0,0.00041369,120]
[408835916,1774338683037,-500.0,0.00041369,120]
[408835917,1774338683047,-500.0,0.00041369,120]
[408835918,1774338683057,-1016.32,0.00041369,120]
[408835919,1774338683068,-500.0,0.00041369,120]
[408835920,1774338683078,-784.59,0.00041369,120]
[408835921,1774338683088,-500.0,0.00041369,120]
[408835922,1774338683098,-1478.69,0.00041369,120]
[408835923,1774338683109,-422.97804043,0.00041369,120]
[408835924,1774338683120,-1107.99,0.00041369,120]
[408835925,1774338683130,-500.0,0.00041369,120]
[408835926,1774338683141,-1259.9,0.00041369,120]
[408835927,1774338683152,-1114.05,0.00041369,120]
[408835928,1774338683162,-1519.93,0.00041369,120]
[408835929,1774338683173,-646.06,0.00041369,120]
[408835930,1774338683183,-500.0,0.00041369,120]
[408835931,1774338683193,-1266.58,0.00041369,120]
[408835932,1774338683203,-500.0,0.00041369,120]
[408835933,1774338683214,-500.0,0.00041369,120]
[408835934,1774338683224,-500.0,0.00041369,120]
[408835935,1774338683234,-500.0,0.00041369,120]
[408835936,1774338683244,-500.0,0.00041369,120]
[408835937,1774338683255,-1009.25,0.00041369,120]
[408835938,1774338683265,-500.0,0.00041369,120]
[408835939,1774338683275,-707.37,0.00041369,120]
[408835940,1774338683285,-1156.03,0.00041369,14]
[408835941,1774338683296,-500.0,0.00041369,120]
[408835942,1774338683307,-999.55,0.00041369,120]
[408835943,1774338683317,-500.0,0.00041369,120]
[408835944,1774338683328,-970.63,0.00041369,120]
[408835945,1774338683340,-500.0,0.00041369,120]
[408835946,1774338683350,-388.4234359,0.00041369,120]
[408835947,1774338683364,-650.62,0.00041369,30]
[408835948,1774338683374,-725.53,0.00041369,120]
[408835949,1774338683385,-500.0,0.00041369,120]
[408835950,1774338683397,-1014.92,0.00041369,120]
[408835951,1774338683408,-500.0,0.00041369,120]
[408835952,1774338683418,-2689.33,0.00041369,120]
[408835953,1774338683429,-500.0,0.00041369,120]
[408835954,1774338683442,-500.0,0.00041369,120]
[408835955,1774338683452,-500.0,0.00041369,120]
[408835956,1774338683463,-500.0,0.00041369,120]
[408835957,1774338683474,-500.0,0.00041369,120]
[408835958,1774338683484,-1544.85,0.00041369,120]
[408835959,1774338683495,-500.0,0.00041369,120]
[408835960,1774338683505,-500.0,0.00041369,120]
[408835961,1774338683515,-500.0,0.00041369,120]
[408835962,1774338683525,-500.0,0.00041369,120]
[408835963,1774338683535,-1269.14,0.00041369,120]
[408835964,1774338683545,-500.0,0.00041369,120]
[408835965,1774338683556,-500.0,0.00041369,120]
[408835966,1774338683566,-500.0,0.00041369,120]
[408835967,1774338683577,-665.15,0.00041369,120]
[408835968,1774338683587,-500.0,0.00041369,120]
[408835969,1774338683598,-680.42,0.00041369,120]
[408835970,1774338683608,-500.0,0.00041369,120]
[408835971,1774338683618,-500.0,0.00041369,120]
[408835972,1774338683628,-500.0,0.00041369,120]
[408835973,1774338683638,-500.0,0.00041369,120]
[408835974,1774338683648,-500.0,0.00041369,120]
[408835975,1774338683658,-500.0,0.00041369,120]
[408835976,1774338683668,-500.0,0.00041369,120]
[408835977,1774338683678,-500.0,0.00041369,120]
[408835978,1774338683688,-500.0,0.00041369,120]
[408835979,1774338683699,-500.0,0.00041369,120]
[408835980,1774338683710,-1769.26,0.00041369,120]
[408835981,1774338683721,-500.0,0.00041369,120]
[408835982,1774338683731,-512.42,0.00041369,120]
[408835983,1774338683741,-500.0,0.00041369,120]
[408835984,1774338683751,-500.0,0.00041369,120]
[408835985,1774338683762,-500.0,0.00041369,120]
[408835986,1774338683773,-500.0,0.00041369,120]
[408835987,1774338683783,-500.0,0.00041369,120]
[408835988,1774338683797,-500.0,0.00041369,120]
[408835989,1774338683809,-500.0,0.00041369,120]
[408835990,1774338683819,-500.0,0.00041369,120]
[408835991,1774338683830,-500.0,0.00041369,120]
[408835992,1774338683841,-500.0,0.00041369,120]